Cogmind - Beta 11 X8 @@@ ROGUE MODE // 2021.11.24 @ 23:37:52 Player: Runia Result: Destroyed by 8R-AWN with 8R-AWN's Boregun Performance ------------- Evolutions (1) 500 Regions Visited (5) 1000 Robots Destroyed (103) 515 Value Destroyed (2202) 2202 Prototype IDs (7) 140 Alien Tech Used (0) 0 Bonus (434) 434 TOTAL SCORE: 4791 Bonus ------- High Alert Combat Kills 348 Follower Combat Kills 100 Friendly Fire -14 Cogmind --------- Core Integrity 0/400 Matter 377/450 Energy 265/265 System Corruption 0% Temperature Cool (0) Movement Treading (160) Location -9/Exiles Parts ------- > --- POWER (1) -------- Improved Ion Engine > --- PROPULSION (2) --- Light Treads Improved Treads > --- UTILITY (3) ------ Large Storage Unit Large Matter Pod Thief Drone Bay (1/3) > --- WEAPON (3) ------- Light Assault Rifle Improved Assault Rifle Mini Grenade Launcher > --- INVENTORY (15) --- Light Treads Advanced Myomer Leg Experimental Heat Sink Cooling System Large Matter Pod (140) Experimental Sensor Array Hacking Suite AS-neutralizer No. 17b Light Assault Rifle Light Assault Rifle Heavy Assault Rifle Plasma Cutter Peak State ------------ > --- POWER ------------ Improved Ion Engine > --- PROPULSION ------- Light Treads Armored Wheel > --- UTILITY ---------- Large Storage Unit Improved Targeting Computer Thief Drone Bay > --- WEAPON ----------- Heavy Assault Rifle Heavy Assault Rifle Improved Assault Rifle > --- INVENTORY -------- Improved Ion Engine Light Treads Light Treads Improved Treads Cooling System Large Matter Pod Experimental Sensor Array Light Armor Plating Light Armor Plating Hacking Suite Light Assault Rifle Light Assault Rifle Light Assault Rifle Mini Grenade Launcher Plasma Cutter [Rating: 25] Favorites ----------- Power Improved Ion Engine Engine Improved Ion Engine Propulsion Light Treads Treads Light Treads Leg Aluminum Leg Wheel Armored Wheel Utility Large Storage Unit Device Heat Sink Storage Large Storage Unit Processor Improved Targeting Computer Protection Light Armor Plating Weapon Medium Laser Energy Gun Medium Laser Ballistic Gun Heavy Assault Rifle Launcher Grenade Launcher Build | -11 -10 -10 -9 -9 -9 ------- Run | Scr Mat Min Mat Min Exi Slots Evolved 2 | . . . 2 . . Power . | . . . . . . Propulsion . | . . . . . . Utility 1 | . . . 1 . . Weapon 1 | . . . 1 . . Parts Attached 77 | 2 15 9 40 7 4 Power 6 | . 2 1 2 1 . Engine 6 | . 2 1 2 1 . Core . | . . . . . . Reactor . | . . . . . . Propulsion 17 | 2 2 1 9 3 . Treads 16 | 2 2 1 9 2 . Leg . | . . . . . . Wheel 1 | . . . . 1 . Hover . | . . . . . . Flight . | . . . . . . Utility 17 | . 3 1 8 3 2 Device 4 | . 2 . . 1 1 Storage 3 | . 1 1 . . 1 Processor 2 | . . . 2 . . Hackware . | . . . . . . Protection 8 | . . . 6 2 . Artifact . | . . . . . . Weapon 37 | . 8 6 21 . 2 Energy Gun 5 | . 2 3 . . . Energy Cannon . | . . . . . . Ballistic Gun 18 | . 2 . 15 . 1 Ballistic Cannon . | . . . . . . Launcher 14 | . 4 3 6 . 1 Special Weapon . | . . . . . . Impact Weapon . | . . . . . . Slashing Weapon . | . . . . . . Piercing Weapon . | . . . . . . Special Melee Weapon . | . . . . . . Unidentified Prototypes 2 | . . . 1 1 . Parts Lost 8 | . 3 . 1 4 . Power 2 | . 1 . . 1 . Propulsion . | . . . . . . Utility 2 | . . . . 2 . Weapon 4 | . 2 . 1 1 . Highest Loss Streak 4 | . 1 . 1 4 . Average Slot Usage (%) 97 | . 95 100 98 96 89 Engine 12 | . 14 14 11 10 11 Treads 23 | . 28 28 22 12 22 Device 6 | . 11 14 2 . 1 Storage 12 | . 14 14 11 11 19 Processor 5 | . . . 9 11 9 Protection 4 | . . . 8 10 . Energy Gun 11 | . 21 25 2 . . Ballistic Gun 16 | . 2 . 29 31 22 Launcher 1 | . 2 2 . . 2 Naked Turns . | . . . . . . Heaviest Build 39 | 12 31 31 39 39 39 Greatest Support 43 | 40 40 40 43 43 43 Greatest Overweight (x) 3 | . . . . 3 . Average Overweight (x) . | . . . . 2 . Largest Inventory Capacity 15 | 8 15 15 15 15 15 Average Capacity 14 | 8 14 15 15 15 15 Most Carried 15 | 6 14 15 15 15 14 Average Carried 13 | 4 9 14 14 14 11 Final Capacity 15 | 8 15 15 15 15 15 Final Carried 15 | 2 13 15 15 11 12 Class Distribution -------------------- 54% | Mutant 42% | Scavenger-Gunner 3% | Gunner Dominant Class ---------------- Mutant | -10/Materials Mutant | -10/Mines Scavenger-Gunner | -9/Materials Scavenger-Gunner | -9/Mines Mutant | -9/Exiles Resources | -11 -10 -10 -9 -9 -9 ----------- Run | Scr Mat Min Mat Min Exi Matter Collected 2230 | 176 340 301 1236 167 10 Remotely . | . . . . . . Salvage Created 3008 | . 522 229 2118 137 2 Parts 204 | . 38 29 129 8 . Haulers Intercepted 8 | . 2 . 6 . . Recyclers Shooed 3 | . . 1 2 . . Parts Field Recycled . | . . . . . . Retrieved Matter . | . . . . . . Parts Self-Destructed . | . . . . . . Prevented . | . . . . . . Kills | -11 -10 -10 -9 -9 -9 ------- Run | Scr Mat Min Mat Min Exi Combat Hostiles Destroyed 68 | . 15 7 39 4 3 Guns 33 | . 8 1 20 4 . AOE 34 | . 6 6 19 . 3 Classes Destroyed 14 | . 7 1 4 2 . Worker 5 | . 1 . 4 . . Builder 8 | . 1 2 4 1 . Tunneler 5 | . 1 3 . 1 . Hauler 8 | . 2 . 6 . . Recycler 8 | . . 1 6 1 . Mechanic 1 | . . . 1 . . Operator 1 | . 1 . . . . Watcher 4 | . . . 4 . . Swarmer 20 | . 5 5 10 . . Grunt 32 | . 10 2 20 . . Brawler 1 | . . . 1 . . Sentry 8 | . . . 8 . . Demolisher 2 | . . . . 2 . Assembled 5 | . . . . 2 3 Best Kill Streak 11 | . 4 5 11 3 3 Combat Bots Only 8 | . 3 3 8 2 3 Max Kills in Single Turn 4 | . 2 3 4 2 1 Gunslinging 1 | . . . . 1 . Exploded 3 | . 2 2 3 . 1 Melee . | . . . . . . Uniques/NPCs Destroyed . | . . . . . . Combat | -11 -10 -10 -9 -9 -9 -------- Run | Scr Mat Min Mat Min Exi Damage Taken 3115 | . 801 167 1098 752 297 Core 563 | . 116 38 212 115 82 Absorbed by Shields . | . . . . . . Core Remaining (%) 69 | 100 . 38 . . . Volleys Fired 196 | . 60 13 103 15 5 Largest 3 | . 2 2 3 3 1 Hottest 120 | . 100 100 120 69 30 Shots Fired 438 | . 102 19 273 39 5 Gun 399 | . 92 12 255 39 1 Cannon . | . . . . . . Launcher 39 | . 10 7 18 . 4 Special . | . . . . . . Kinetic 301 | . 16 . 245 39 1 Thermal 98 | . 76 12 10 . . Explosive 39 | . 10 7 18 . 4 Electromagnetic . | . . . . . . Robot Hit Streak 34 | . 12 5 34 7 1 Robot Miss Streak 4 | . 4 2 3 2 1 Penetration Max . | . . . . . . Secondary Targets 2 | . 1 . . 1 . Max Gunslinging Chain 1 | . 1 . . 1 . Shots Hit Robots 285 | . 66 12 181 25 1 Core Hits 176 | . 39 18 104 10 5 Critical Kills . | . . . . . . Critical Parts Destroyed 2 | . . . 2 . . Critical Strikes 8 | . 5 1 2 . . Burn 6 | . 5 1 . . . Destroy 2 | . . . 2 . . Melee Attacks . | . . . . . . Impact . | . . . . . . Slashing . | . . . . . . Piercing . | . . . . . . Sneak Attacks . | . . . . . . Combat Hostiles . | . . . . . . Follow-up Attacks . | . . . . . . Damage Inflicted 6818 | . 1451 752 3990 397 228 Guns 3581 | . 707 114 2363 397 . Cannons . | . . . . . . Explosions 3211 | . 744 612 1627 . 228 Melee . | . . . . . . Ramming 26 | . . 26 . . . Kinetic 2755 | . 81 . 2277 397 . Thermal 826 | . 626 114 86 . . Explosive 3211 | . 744 612 1627 . 228 Electromagnetic . | . . . . . . Impact . | . . . . . . Slashing . | . . . . . . Piercing . | . . . . . . Highest Corruption 1 | . 1 1 . . . Average Corruption 1 | . 1 1 . . . Corruption Purged . | . . . . . . Effects 6 | . 6 . . . . Message Errors 5 | . 5 . . . . Data Loss (minor) 1 | . 1 . . . . Overload Shots . | . . . . . . Overflow Damage 66 | . 48 5 6 . 7 Projectiles . | . . . . . . Explosions 66 | . 48 5 6 . 7 Melee . | . . . . . . Knockbacks 1 | . . 1 . . . Impact 1 | . . 1 . . . Kinetic . | . . . . . . Secondary . | . . . . . . Self-Inflicted Damage 472 | . 274 30 117 . 51 Shots 19 | . 8 3 6 . 2 Rammed 1 | . . 1 . . . Targets Rammed 2 | . . 2 . . . Kicked . | . . . . . . Crushed 1 | . . 1 . . . Highest Temperature 303 | . 303 18 159 24 13 Average Temperature 39 | . 70 7 27 10 9 Received Heat Transfer 719 | . 237 18 444 . 20 Siege Activations . | . . . . . . Robots Corrupted . | . . . . . . Combat Hostiles . | . . . . . . Parts Fried . | . . . . . . Impact Corruptions . | . . . . . . Robots Melted 1 | . 1 . . . . Combat Hostiles 1 | . 1 . . . . Parts Melted 3 | . 1 . 2 . . Heat Transferred 2886 | . 2220 407 259 . . Parts Sabotaged . | . . . . . . Parts Stolen . | . . . . . . Parts Stripped . | . . . . . . Power Chain Reactions . | . . . . . . Missiles Intercepted . | . . . . . . Alert | -11 -10 -10 -9 -9 -9 ------- Run | Scr Mat Min Mat Min Exi Peak Influence 941 | . 261 315 941 335 . Initial 295 | . . 73 48 295 . Average 329 | . 163 160 524 313 . Maximum Alert Level 3 | . 1 1 3 1 . Low Security (%) 43 | 100 59 75 27 8 . Level 1 26 | . 40 24 2 91 . Level 2 12 | . . . 30 . . Level 3 17 | . . . 40 . . Level 4 . | . . . . . . Level 5 . | . . . . . . High Security . | . . . . . . Max Security . | . . . . . . Squads Dispatched 7 | . 3 . 4 . . Investigation 3 | . 2 . 1 . . Extermination . | . . . . . . Reinforcement 2 | . 1 . 1 . . Assault 2 | . . . 2 . . Garrison . | . . . . . . Intercept . | . . . . . . Construction Impeded . | . . . . . . Haulers Reinforced . | . . . . . . Active Scanning Responses . | . . . . . . Cargo Convoy Interrupts . | . . . . . . Stealth | -11 -10 -10 -9 -9 -9 --------- Run | Scr Mat Min Mat Min Exi Distress Signals 5 | . 1 . 4 . . Communications Jammed . | . . . . . . Distress Signals . | . . . . . . Times Spotted 101 | . 29 8 54 6 4 Peak Tracking Total 12 | . 5 3 12 2 9 Tactical Retreats 2 | . . . 1 1 . Traps | -11 -10 -10 -9 -9 -9 ------- Run | Scr Mat Min Mat Min Exi Traps Triggered 1 | . 1 . . . . Indirectly . | . . . . . . Trap Hack Attempts . | . . . . . . Triggered . | . . . . . . Disarmed . | . . . . . . Reprogrammed . | . . . . . . Reused . | . . . . . . Traps Extracted . | . . . . . . Installed . | . . . . . . Triggered . | . . . . . . Exploded 3 | . . . . . 3 Machines | -11 -10 -10 -9 -9 -9 ---------- Run | Scr Mat Min Mat Min Exi Machines Disabled 16 | . 6 . 6 . 4 Max in Single Turn 2 | . 1 . 1 . 2 Machines Sabotaged . | . . . . . . Garrisons Compromised . | . . . . . . Overloaded Fab Kills . | . . . . . . Hacking | -11 -10 -10 -9 -9 -9 --------- Run | Scr Mat Min Mat Min Exi Machines Accessed 20 | . 9 . 9 1 1 Terminals 13 | . 7 . 6 . . Fabricators . | . . . . . . Repair Stations 1 | . . . 1 . . Recycling Units 3 | . 2 . 1 . . Scanalyzers 1 | . . . 1 . . Garrison Access . | . . . . . . Total Hacks 41 | . 22 . 17 1 1 Successful 22 | . 11 . 9 1 1 Failed 19 | . 11 . 8 . . Catastrophic 5 | . 3 . 2 . . Database Lockouts . | . . . . . . Manual 16 | . 12 . 4 . . Terminals 31 | . 20 . 11 . . Fabricators . | . . . . . . Repair Stations 3 | . . . 3 . . Recycling Units 3 | . 2 . 1 . . Scanalyzers 2 | . . . 2 . . Garrison Access . | . . . . . . Terminal Hacks 16 | . 9 . 5 1 1 Record 1 | . . . . . 1 Part Schematic 2 | . 2 . . . . Robot Schematic 1 | . 1 . . . . Prototype ID Bank 2 | . 2 . . . . Open Door 1 | . . . . 1 . Branch Access Points 2 | . 1 . 1 . . Terminal Index 1 | . 1 . . . . Alert Level 1 | . . . 1 . . Unreport Threat 1 | . . . 1 . . Locate Traps 1 | . . . 1 . . Hauler Manifests 1 | . 1 . . . . Zone Layout 2 | . 1 . 1 . . Fabricator Hacks . | . . . . . . Repair Station Hacks 1 | . . . 1 . . Scan Component 1 | . . . 1 . . Recycling Unit Hacks . | . . . . . . Scanalyzer 2 | . . . 2 . . Insert Component 1 | . . . 1 . . Analyze 1 | . . . 1 . . Garrison Access Hacks . | . . . . . . Unauthorized Hacks 3 | . 2 . 1 . . Terminals . | . . . . . . Fabricators . | . . . . . . Repair Stations . | . . . . . . Recycling Units 3 | . 2 . 1 . . Tunnel 3 | . 2 . 1 . . Scanalyzers . | . . . . . . Garrison Access . | . . . . . . Data Cores Recovered . | . . . . . . Used . | . . . . . . Hacking Detections 14 | . 6 . 8 . . Full Trace Events 1 | . 1 . . . . Feedback Events . | . . . . . . Feedback Blocked . | . . . . . . Robot Schematics Acquired 1 | . 1 . . . . Robots Built . | . . . . . . Authchips . | . . . . . . Time . | . . . . . . Total Robot Build Rating . | . . . . . . Part Schematics Acquired 3 | . 2 . 1 . . Parts Built . | . . . . . . Authchips . | . . . . . . Time . | . . . . . . Total Part Build Rating . | . . . . . . Parts Repaired . | . . . . . . Time . | . . . . . . Parts Recycled . | . . . . . . Recycled Matter . | . . . . . . Retrieved Matter . | . . . . . . Retrieved Components . | . . . . . . Parts Scanalyzed 1 | . . . 1 . . Part Schematics Acquired 1 | . . . 1 . . Parts Damaged . | . . . . . . Bothacking | -11 -10 -10 -9 -9 -9 ------------ Run | Scr Mat Min Mat Min Exi Used RIF Installer . | . . . . . . Robots Hacked . | . . . . . . Non-combat . | . . . . . . Combat . | . . . . . . Robot Hacks Applied . | . . . . . . Relay Couplers Released . | . . . . . . Fabnet Peak Effective % . | . . . . . . Robots Rewired . | . . . . . . Allies Hacked . | . . . . . . Hacks Repelled . | . . . . . . Allies | -11 -10 -10 -9 -9 -9 -------- Run | Scr Mat Min Mat Min Exi Total Allies 3 | . . 3 . . . Largest Group 3 | . . 3 1 . . Highest-Rated Group 40 | . . 40 16 . . Highest-Rated Ally 16 | . . 16 16 . . Total Orders 1 | . . . . . 1 RETURN 1 | . . . . . 1 Ally Attacks 26 | . . 10 3 . 13 Total Damage 249 | . . 106 34 . 109 Kills 4 | . . 3 1 . . Allies Corrupted . | . . . . . . Allies Melted . | . . . . . . Intel | -11 -10 -10 -9 -9 -9 ------- Run | Scr Mat Min Mat Min Exi Robot Analysis Total . | . . . . . . Derelict Logs Recovered 2 | . . 1 . 1 . Drone Launches 7 | . . . . . 7 Drone Recoveries 5 | . . . . . 5 Exploration | -11 -10 -10 -9 -9 -9 ------------- Run | Scr Mat Min Mat Min Exi Turns Passed 4818 | 4 1383 765 1886 438 342 Spaces Moved 2524 | 1 734 441 916 269 163 Core . | . . . . . . Treads 2297 | 1 734 441 916 42 163 Legs . | . . . . . . Wheels 227 | . . . . 227 . Hover . | . . . . . . Flight . | . . . . . . Fastest Speed 120 | 160 160 160 160 120 160 Average Speed 157 | 160 160 160 160 138 160 Slowest Speed 160 | 160 160 160 160 160 160 Overloaded Moves . | . . . . . . Propulsion Burnouts . | . . . . . . Robots Hopped . | . . . . . . Cave-ins Triggered . | . . . . . . Exploration Rate (%) 64 | 2 96 86 87 63 51 Regions Visited 5 Branch Regions 3 Pre-discovered Areas 4 | . 2 . 1 . 1 Known Exits Taken 2 | . 1 . 1 . . Unknown Exits Taken 3 | 1 . 1 . 1 . Scrap Searched 2 | . . 1 . 1 . Spaces Dug . | . . . . . . Terrain Destroyed 190 | . 45 37 88 . 20 Melee . | . . . . . . Projectile . | . . . . . . AOE 190 | . 45 37 88 . 20 Terrain Rammed . | . . . . . . Walls Destroyed . | . . . . . . Machines Disabled . | . . . . . . Actions | -11 -10 -10 -9 -9 -9 --------- Run | Scr Mat Min Mat Min Exi Total 3011 | 6 840 477 1146 302 240 Wait 106 | . 10 9 19 7 61 Move 2519 | . 733 440 915 268 163 Hop . | . . . . . . Pick Up 48 | . 17 2 24 1 4 Fast Attach 9 | . 2 . 6 1 . Attach 11 | 2 3 . 2 2 2 Detach . | . . . . . . Swap 57 | . 10 9 32 4 2 Drop 63 | 4 5 2 45 4 3 Fire 196 | . 60 13 103 15 5 Melee . | . . . . . . Ram . | . . . . . . Kick . | . . . . . . Crush 2 | . . 2 . . . Escape Stasis . | . . . . . . Rewire . | . . . . . . Trap . | . . . . . . Miscellaneous . | . . . . . . Route ------- -11/Scrapyard -10/Materials (discovered 4 exits: *Mat x3 / *Min) -10/Mines (discovered 2 exits: *Mat x2) -9/Materials (discovered 4 exits: [*Mat x2] / *Min x2) -9/Mines (discovered 3 exits: [*Mat x2] / *Exi) -9/Exiles (discovered 1 exit: [*Min]) History --------- Turn | Location | Event 5 | -11/Scrapyard | Discovered new exit (range 0) 5 | -11/Scrapyard | Entered Materials 262 | -10/Materials | Identified exit to Mines 282 | -10/Materials | Discovered new exit (range 7) 316 | -10/Materials | Build established: Mutant 821 | -10/Materials | Discovered new exit (range 16) 1044 | -10/Materials | Discovered new exit (range 8) 1388 | -10/Materials | Entered Mines 1422 | -10/Mines | Core integrity fell below 50% 1493 | -10/Mines | Assisted by bots powering up and referring to "LRC-V3" 1650 | -10/Mines | Discovered new exit (range 10) 1833 | -10/Mines | Discovered new exit (range 5) 2153 | -10/Mines | Entered Materials 2153 | -9/Materials | Accompanied by 1 ally 2153 | -9/Materials | Evolved 2 slots: Utility x1, Weapon x1 2515 | -9/Materials | Build established: Scavenger-Gunner 2736 | -9/Materials | Destroyed 8 combat bots 2984 | -9/Materials | Discovered new exit (range 11) 3060 | -9/Materials | Discovered new exit (range 11) 3174 | -9/Materials | Discovered new exit (range 12) 3179 | -9/Materials | Identified exit to Mines 3353 | -9/Materials | First assault squad dispatched 3436 | -9/Materials | Discovered new exit (range 10) 3868 | -9/Materials | Core integrity fell below 50% 4039 | -9/Materials | Entered Mines 4040 | -9/Mines | Assembled infested the area 4108 | -9/Mines | Discovered new exit (range 9) 4162 | -9/Mines | Found a damaged Exp. Sensor Array with a note attached 4165 | -9/Mines | Found Prototype Device 4257 | -9/Mines | Found the Drone Emporium 4267 | -9/Mines | Found Prototype Device 4267 | -9/Mines | Identified Thief Drone Bay 4296 | -9/Mines | Discovered new exit (range 5) 4432 | -9/Mines | Core integrity fell below 20% 4469 | -9/Mines | Lost 4 parts (1p2u1w) 4471 | -9/Mines | Deemed a non-threat by the Exiles lab entrance 4471 | -9/Mines | Discovered new exit (range 5) 4477 | -9/Mines | Entered Exiles 4517 | -9/Exiles | Met 8R-AWN 4531 | -9/Exiles | Discovered new exit (range 15) 4584 | -9/Exiles | Met EX-HEX 4663 | -9/Exiles | Met EX-DEC 4692 | -9/Exiles | Learned location of Zion (-7) 4707 | -9/Exiles | Attacked by the Exiles 4748 | -9/Exiles | Build established: Mutant 4819 | -9/Exiles | Destroyed by 8R-AWN with 8R-AWN's Boregun Last Messages --------------- 04813_ HV Slug penetrates Machine. 04813_ HV Slug penetrates Wall. 04813_ Penetrated by HV Slug. 04813_ HV Slug penetrates Wall. 04814_ Thief Drone released from Thief Drone Bay. 04814_ Thief Drone sneak attacks. 04815_ Thief Drone released from Thief Drone Bay. 04815_ HV Slug penetrates Thief Drone. 04815_ Thief Drone suffers critical hit (Destroy). 04815_ Thief Drone destroyed. 04815_ HV Slug penetrates Wall. 04815_ Penetrated by HV Slug. 04815_ HV Slug penetrates Thief Drone. 04815_ Thief Drone suffers critical hit (Destroy). 04815_ Thief Drone destroyed. 04816_ 8R-AWN Prototype Device ripped off. 04818_ Wall collapses. 04818_ Thief Drone delivers Prototype Device. 04818_ Thief Drone retrieved by Thief Drone Bay. 04819_ Penetrated by HV Slug. Map ----- +----------------------------------------------------+ | ?????????????????????????????????????????????????? | | ?????????????????????????????????????????????????? | | ?????????????????????????????????????????????????? | | ?????????????????????????????????????????????????? | | ?????????????????????????????????????????????????? | | ?????????????????????????????????????????????????? | | ?????????????????????????????????????????????????? | | ?????????????????????????????????????????????????? | | ?????????????????????????????????????????????????? | | ?????????????????????????????????????????????????? | | ?????????????????????????????????????????????????? | | ?????????????????????????????????????????????????? | | ?????????????????????????????#######?????????????? | | ??????????????? ######???????#!!! "#?????????????? | | ?????????????? #""#??????# "#?????????????? | | ?????????????? ??????# "#?????????????? | | ?????????????" #????## ""#?????????????? | | ?????????????? #####" ""#?????????????? | | ??????????????# ## ""##????????????? | | ???????????????# #" # #???????????? | | ??????????????????# ##??????????? | | ?????????????????????# #??????????? | | ?????????????????????### # #??????????? | | ???????????????########" g #???????? | | ??????????????## !!""" " #???????? | | ??????????????#;! %@"## " ###???### | | ??????????????##! %"#### #####X# | | ???????????????#! ##??# | | ???????????????# ! "" "#;#???#"# % | | ???????????????########## #???#### | | ????????????????????????# #??????## | | ????????????????????????###????????### % | | ?????????????????????????????????????## | | ??????????????????????????????????????## | | ???????????????????????????????????????##" | | ????????????????????????????????????????#""" | | ???????????????????????????????????????##" | | ???????????????????????????????????????#"" | | ???????????????????????????????????????#""" | | ???????????????????????????????????????""" | | ???????????????????????????????????????""" | | ??????????????????????????????????????#"" | | ??????????????????????????????????????#""" | | ???????????????????????????????????????"" | | ???????????????????????????????????????#"" | | ???????????????????????????????????????#"""" | | ????????????????????????????????????????# | | ????????????????????????????????????????#" | | ????????????????????????????????????????#"""" | | ????????????????????????????????????????#"" | +----------------------------------------------------+ Best States ------------- Heat Dissipation 38 Energy Generation 12 Energy Capacity 265 Matter Stores 450 Matter Capacity 450 Sight Range 16 Terrain Scan Density 10 Armor Coverage 150 Evasion (%) 40 Targeting Accuracy 6 Recoil Reduction 2 Item Schematics ----------------- Hcp. Storage Unit | -10/Materials | Hacked Huge Storage Unit | -10/Materials | Hacked Imp. Terrain Scanner | -9/Materials | Scanalyzed Robot Schematics ------------------ M-13 Machinist | -10/Materials | Hacked Fabricated ------------ Nothing Alien Tech Used ----------------- None Achievements -------------- None Challenges ------------ None Game ------ Seed CorruptionNeutrinoWheel Manual? 0 Play Time 00:28:21 Cumulative 509.2 hours Start 2021.11.24 @ 23:09:43 End 2021.11.24 @ 23:37:52 Sessions 1 Manual Loads 0 Difficulty Rogue Special Mode None Game No. 495 Rogue 495 Adventurer 0 Explorer 0 Win Type - Total 13 Types 9/0/3/1/0/0/0/0/0 Lore% 83 Gallery% 94 Achievement% 72 Wizard Run 0 Options --------- ASCII 0 Keyboard 0 Movement Mouse Keybinds 1 Fullscreen 2 Font 24/Smallcaps Map View 76x50 Tactical HUD 1 Map Filters NONE Filters NONE Steam 1 RUN: f1eba533-0bf3-44bc-b33e-ae424270e34e